fUST/lending_fUST_20260620
["ID","MTS","AMOUNT","RATE_DAILY","PERIOD"]
[425832318,1781956466000,438.06,0.00023222,120]
[425832320,1781956661000,3000.0,7.6e-05,2]
[425832322,1781956853000,-220.93365849,0.00011188,2]
[425832323,1781956870000,-333.12551179,0.0001159,2]
[425832324,1781956887000,-433.21124884,0.0001159,2]
[425832325,1781956904000,-500.0,0.0001159,2]
[425832326,1781956920000,-500.0,0.0001159,2]
[425832328,1781956937000,-500.0,0.0001159,2]
[425832329,1781956954000,-500.0,0.0001159,2]
[425832388,1781957432000,-283.12779596,0.00013415,2]
[425832368,1781957432000,-3735.31062854,0.00011591,2]
[425832371,1781957432000,-3292.2026078,0.00011691,2]
[425832377,1781957432000,-569.90104203,0.00012298,2]
[425832391,1781957432000,-3083.62047764,0.00013542,2]
[425832376,1781957432000,-1472.90487544,0.00011691,2]
[425832370,1781957432000,-174.384416,0.00011686,2]
[425832379,1781957432000,-1025.82187565,0.00012469,2]
[425832373,1781957432000,-4448.52364766,0.00011691,2]
[425832381,1781957432000,-482.91248938,0.00012968,2]
[425832383,1781957432000,-1309.45125604,0.00012968,2]
[425832384,1781957432000,-31.31958907,0.00012968,2]
[425832385,1781957432000,-3735.31062851,0.00013052,2]
[425832386,1781957432000,-914.44035755,0.00013133,2]
[425832387,1781957432000,-260.757001,0.00013369,2]
[425832389,1781957432000,-4010.79113156,0.00013542,2]
[425832390,1781957432000,-763.98898707,0.00013542,2]
[425832469,1781957439000,-1733.37683208,0.00013542,2]
[425832470,1781957439000,-400.02095422,0.00013542,2]
[425832645,1781957441000,-603.41795332,0.00013542,2]
[425832945,1781957444000,-500.68,0.00013542,2]
[425832954,1781957444000,-797.9436118,0.00013542,2]
[425832952,1781957444000,-418.93857618,0.00013542,2]
[425833021,1781957447000,-23675.13312678,0.00013542,2]
[425833041,1781958631000,-297.62407123,0.00012294,2]
[425833042,1781958631000,-8029.50199315,0.00012294,2]
[425833040,1781958631000,-2082.85073762,0.00012294,2]
[425833043,1781958631000,-756.72698184,0.00012473,7]
[425833044,1781958631000,-7518.79664879,0.00012586,2]
[425833073,1781958638000,-454.07571631,0.00012586,2]
[425833074,1781958638000,-988.98697157,0.00012623,2]
[425833087,1781958640000,-306.95212958,0.00012623,2]
[425833186,1781958646000,-1310.505675,0.0001324,2]
[425833182,1781958646000,-238.36124428,0.00012673,2]
[425833184,1781958646000,-199.30234984,0.00013195,2]
[425833175,1781958646000,-2180.24100875,0.00012623,2]
[425833178,1781958646000,-1616.0598613,0.00012623,2]
[425833177,1781958646000,-898.4988115,0.00012623,2]
[425833180,1781958646000,-323.25104933,0.00012628,2]
[425833198,1781958673000,-1310.28237855,0.0001324,2]
[425833239,1781959831000,-151.0,0.00011095,2]
[425833240,1781959831000,-1055.5367338,0.00012744,2]
[425833237,1781959831000,-228.74761508,0.00010866,2]
[425833247,1781959832000,-578.65452979,0.00012968,2]
[425833245,1781959832000,-358.74422971,0.00012968,2]
[425833242,1781959832000,-173.0688167,0.00012744,2]
[425833243,1781959832000,-172.10419606,0.00012942,2]
[425833328,1781959838000,-500.0,0.00013037,2]
[425833331,1781959838000,-500.0,0.00013037,2]
[425833332,1781959838000,-500.0,0.00013037,2]
[425833329,1781959838000,-500.0,0.00013037,2]
[425833330,1781959838000,-500.0,0.00013037,2]
[425833333,1781959838000,-500.0,0.00013037,2]
[425833349,1781959838000,-500.0,0.00013037,2]
[425833336,1781959838000,-500.0,0.00013037,2]
[425833351,1781959838000,-500.0,0.00013037,2]
[425833350,1781959838000,-500.0,0.00013037,2]
[425833343,1781959838000,-500.0,0.00013037,2]
[425833339,1781959838000,-500.0,0.00013037,2]
[425833346,1781959838000,-500.0,0.00013037,2]
[425833326,1781959838000,-500.0,0.00013037,2]
[425833335,1781959838000,-500.0,0.00013037,2]
[425833338,1781959838000,-500.0,0.00013037,2]
[425833315,1781959838000,-500.0,0.00013037,2]
[425833327,1781959838000,-500.0,0.00013037,2]
[425833310,1781959838000,-59.1129897,0.00012968,2]
[425833311,1781959838000,-500.0,0.00013037,2]
[425833318,1781959838000,-500.0,0.00013037,2]
[425833316,1781959838000,-500.0,0.00013037,2]
[425833320,1781959838000,-500.0,0.00013037,2]
[425833325,1781959838000,-500.0,0.00013037,2]
[425833313,1781959838000,-500.0,0.00013037,2]
[425833317,1781959838000,-452.58337373,0.00013037,2]
[425833312,1781959838000,-500.0,0.00013037,2]
[425833314,1781959838000,-500.0,0.00013037,2]
[425833323,1781959838000,-500.0,0.00013037,2]
[425833319,1781959838000,-500.0,0.00013037,2]
[425833321,1781959838000,-500.0,0.00013037,2]
[425833322,1781959838000,-500.0,0.00013037,2]
[425833324,1781959838000,-500.0,0.00013037,2]
[425833337,1781959838000,-500.0,0.00013037,2]
[425833345,1781959838000,-500.0,0.00013037,2]
[425833334,1781959838000,-500.0,0.00013037,2]
[425833347,1781959838000,-500.0,0.00013037,2]
[425833365,1781959838000,-500.0,0.00013037,2]
[425833363,1781959838000,-500.0,0.00013037,2]
[425833371,1781959838000,-500.0,0.00013037,2]
[425833362,1781959838000,-500.0,0.00013037,2]
[425833366,1781959838000,-500.0,0.00013037,2]
[425833372,1781959838000,-500.0,0.00013037,2]
[425833370,1781959838000,-500.0,0.00013037,2]
[425833377,1781959838000,-500.0,0.00013037,2]
[425833374,1781959838000,-500.0,0.00013037,2]
[425833379,1781959838000,-500.0,0.00013037,2]
[425833375,1781959838000,-500.0,0.00013037,2]
[425833376,1781959838000,-500.0,0.00013037,2]
[425833381,1781959838000,-443.41272454,0.00013037,2]
[425833380,1781959838000,-56.58727546,0.00013037,2]
[425833340,1781959838000,-500.0,0.00013037,2]
[425833368,1781959838000,-500.0,0.00013037,2]
[425833364,1781959838000,-500.0,0.00013037,2]
[425833378,1781959838000,-500.0,0.00013037,2]
[425833367,1781959838000,-500.0,0.00013037,2]
[425833369,1781959838000,-500.0,0.00013037,2]
[425833352,1781959838000,-500.0,0.00013037,2]
[425833348,1781959838000,-500.0,0.00013037,2]
[425833341,1781959838000,-500.0,0.00013037,2]
[425833342,1781959838000,-500.0,0.00013037,2]
[425833355,1781959838000,-500.0,0.00013037,2]
[425833354,1781959838000,-500.0,0.00013037,2]
[425833344,1781959838000,-500.0,0.00013037,2]
[425833356,1781959838000,-500.0,0.00013037,2]
[425833361,1781959838000,-500.0,0.00013037,2]
[425833360,1781959838000,-500.0,0.00013037,2]
[425833358,1781959838000,-500.0,0.00013037,2]
[425833373,1781959838000,-500.0,0.00013037,2]
[425833357,1781959838000,-480.1938355,0.00013037,2]
[425833353,1781959838000,-500.0,0.00013037,2]
[425833359,1781959838000,-500.0,0.00013037,2]
[425833395,1781959839000,-500.0,0.00013037,2]
[425833399,1781959839000,-500.0,0.00013037,2]
[425833406,1781959839000,-500.0,0.00013037,2]
[425833409,1781959839000,-500.0,0.00013037,2]
[425833400,1781959839000,-464.49857546,0.00013037,2]
[425833407,1781959839000,-500.0,0.00013037,2]
[425833402,1781959839000,-500.0,0.00013037,2]
[425833408,1781959839000,-500.0,0.00013037,2]
[425833398,1781959839000,-500.0,0.00013037,2]
[425833403,1781959839000,-500.0,0.00013037,2]
[425833396,1781959839000,-500.0,0.00013037,2]
[425833393,1781959839000,-500.0,0.00013037,2]
[425833397,1781959839000,-500.0,0.00013037,2]
[425833392,1781959839000,-500.0,0.00013037,2]
[425833391,1781959839000,-57.4916643,0.00013037,2]
[425833388,1781959839000,-296.89919758,0.00013037,2]
[425833386,1781959839000,-500.0,0.00013037,2]
[425833390,1781959839000,-442.5083357,0.00013037,2]
[425833389,1781959839000,-500.0,0.00013037,2]
[425833387,1781959839000,-500.0,0.00013037,2]
[425833382,1781959839000,-500.0,0.00013037,2]
[425833385,1781959839000,-500.0,0.00013037,2]
[425833384,1781959839000,-500.0,0.00013037,2]
[425833383,1781959839000,-500.0,0.00013037,2]
[425833405,1781959839000,-500.0,0.00013037,2]
[425833394,1781959839000,-500.0,0.00013037,2]
[425833404,1781959839000,-500.0,0.00013037,2]
[425833401,1781959839000,-500.0,0.00013037,2]
[425833416,1781959839000,-500.0,0.00013037,2]
[425833437,1781959839000,-13400.49733147,0.00013042,2]
[425833436,1781959839000,-405.68118885,0.00013039,2]
[425833435,1781959839000,-203.80392407,0.00013039,2]
[425833434,1781959839000,-4690.86821197,0.00013038,2]
[425833423,1781959839000,-500.0,0.00013037,2]
[425833433,1781959839000,-250.0,0.00013037,2]
[425833430,1781959839000,-500.0,0.00013037,2]
[425833424,1781959839000,-500.0,0.00013037,2]
[425833422,1781959839000,-500.0,0.00013037,2]
[425833410,1781959839000,-500.0,0.00013037,2]
[425833432,1781959839000,-500.0,0.00013037,2]
[425833431,1781959839000,-500.0,0.00013037,2]
[425833428,1781959839000,-155.0,0.00013037,2]
[425833426,1781959839000,-500.0,0.00013037,2]
[425833425,1781959839000,-500.0,0.00013037,2]
[425833412,1781959839000,-500.0,0.00013037,2]
[425833411,1781959839000,-500.0,0.00013037,2]
[425833427,1781959839000,-500.0,0.00013037,2]
[425833414,1781959839000,-500.0,0.00013037,2]
[425833415,1781959839000,-500.0,0.00013037,2]
[425833420,1781959839000,-500.0,0.00013037,2]
[425833413,1781959839000,-500.0,0.00013037,2]
[425833421,1781959839000,-500.0,0.00013037,2]
[425833418,1781959839000,-500.0,0.00013037,2]
[425833419,1781959839000,-500.0,0.00013037,2]
[425833429,1781959839000,-500.0,0.00013037,2]
[425833417,1781959839000,-500.0,0.00013037,2]
[425833441,1781959840000,-1498.07037734,0.00013042,2]
[425833442,1781959840000,-16159.05109685,0.00013042,2]
[425833445,1781959843000,-427.42053145,0.00012968,2]
[425833446,1781959843000,-4485.93804894,0.00013042,2]
[425833458,1781959843000,-288.85424635,0.00013204,7]
[425833470,1781959843000,-156.0,0.00013391,2]
[425833462,1781959843000,-115.90510123,0.00013315,2]
[425833466,1781959843000,-166.0,0.00013315,2]
[425833460,1781959843000,-337.17868703,0.00013255,2]
[425833464,1781959843000,-41.09489877,0.00013315,2]
[425833475,1781959843000,-1047.03928542,0.00013606,2]
[425833468,1781959843000,-166.0,0.00013391,2]
[425833473,1781959843000,-151.6,0.00013542,5]
[425833456,1781959843000,-111465.55760763,0.00013042,2]
[425833643,1781959846000,-745.89,0.00013698,2]
[425833647,1781959846000,-745.89,0.00013698,2]
[425833650,1781959846000,-745.89,0.00013698,2]
[425833649,1781959846000,-745.89,0.00013698,2]
[425833651,1781959846000,-471.94230024,0.00013698,2]
[425833653,1781959846000,-745.89,0.00013698,2]
[425833655,1781959846000,-745.89,0.00013698,2]
[425833652,1781959846000,-273.94769976,0.00013698,2]
[425833657,1781959846000,-363.03344242,0.00013698,2]
[425833662,1781959846000,-1367.74570064,0.00014068,2]
[425833658,1781959846000,-286.7653535,0.00013699,2]
[425833661,1781959846000,-227.31890529,0.00013975,2]
[425833654,1781959846000,-745.89,0.00013698,2]
[425833648,1781959846000,-745.89,0.00013698,2]
[425833644,1781959846000,-745.89,0.00013698,2]
[425833639,1781959846000,-620.55295676,0.00013698,2]
[425833640,1781959846000,-500.0,0.00013698,2]
[425833638,1781959846000,-500.0,0.00013698,2]
[425833641,1781959846000,-518.20445619,0.00013698,2]
[425833645,1781959846000,-745.89,0.00013698,2]
[425833646,1781959846000,-745.89,0.00013698,2]
[425833636,1781959846000,-151.0,0.00013606,2]
[425833642,1781959846000,-745.89,0.00013698,2]
[425833635,1781959846000,-194.565,0.00013606,2]
[425833632,1781959846000,-1841.0,0.00013606,2]
[425833630,1781959846000,-769.35695661,0.00013257,2]
[425833634,1781959846000,-745.0,0.00013606,2]
[425833633,1781959846000,-445.0,0.00013606,2]
[425833656,1781959846000,-745.89,0.00013698,2]
[425833637,1781959846000,-500.0,0.00013698,2]
[425833663,1781959846000,-745.89,0.00014213,2]
[425833631,1781959846000,-370.96071458,0.00013606,2]
[425833659,1781959846000,-288.536687,0.00013699,2]
[425833660,1781959846000,-364.10088036,0.00013699,2]
[425833693,1781959846000,-500.0,0.00016438,2]
[425833692,1781959846000,-500.0,0.00016438,2]
[425833689,1781959846000,-500.0,0.00016438,2]
[425833684,1781959846000,-166.0,0.00016271,2]
[425833690,1781959846000,-500.89665505,0.00016438,2]
[425833691,1781959846000,-500.0,0.00016438,2]
[425833680,1781959846000,-155.04,0.00015421,2]
[425833687,1781959846000,-745.89,0.00016437,2]
[425833688,1781959846000,-745.89,0.00016437,2]
[425833681,1781959846000,-378.52937199,0.00015481,2]
[425833679,1781959846000,-160.0,0.00015262,2]
[425833685,1781959846000,-155.76726146,0.00016271,2]
[425833682,1781959846000,-180.05761844,0.000158,2]
[425833683,1781959846000,-1107.5215318,0.00016028,2]
[425833694,1781959846000,-500.0,0.00016438,2]
[425833674,1781959846000,-153.26,0.00015084,2]
[425833686,1781959846000,-745.89,0.00016437,2]
[425833664,1781959846000,-745.89,0.00014481,2]
[425833678,1781959846000,-160.0,0.00015262,2]
[425833677,1781959846000,-160.0,0.00015262,2]
[425833668,1781959846000,-331.54474523,0.00014514,2]
[425833670,1781959846000,-798.0,0.000147,2]
[425833667,1781959846000,-151.0,0.00014482,2]
[425833665,1781959846000,-10000.0,0.00014482,2]
[425833669,1781959846000,-621.11237211,0.00014685,7]
[425833673,1781959846000,-189.600699,0.00015068,2]
[425833675,1781959846000,-160.0,0.00015262,2]
[425833672,1781959846000,-503.17331751,0.00015021,2]
[425833671,1781959846000,-600.0,0.00014944,2]
[425833666,1781959846000,-7735.77700241,0.00014482,2]
[425833676,1781959846000,-417.15472785,0.00015262,2]
[425833742,1781959847000,-581.88269153,0.00016438,2]
[425833735,1781959847000,-500.0,0.00016438,2]
[425833738,1781959847000,-507.07754624,0.00016438,2]
[425833732,1781959847000,-224.5042824,0.00016438,2]
[425833737,1781959847000,-500.0,0.00016438,2]
[425833726,1781959847000,-509.35688368,0.00016438,2]
[425833739,1781959847000,-507.92660964,0.00016438,2]
[425833720,1781959847000,-234.49588971,0.00016438,2]
[425833719,1781959847000,-500.0,0.00016438,2]
[425833743,1781959847000,-508.3231192,0.00016438,2]
[425833727,1781959847000,-500.0,0.00016438,2]
[425833736,1781959847000,-501.26578435,0.00016438,2]
[425833733,1781959847000,-511.24682395,0.00016438,2]
[425833744,1781959847000,-503.67972171,0.00016438,2]
[425833731,1781959847000,-510.53072542,0.00016438,2]
[425833740,1781959847000,-504.85220114,0.00016438,2]
[425833734,1781959847000,-500.0,0.00016438,2]
[425833748,1781959847000,-500.0,0.00016438,2]
[425833756,1781959847000,-500.0,0.00016438,2]
[425833754,1781959847000,-500.0,0.00016438,2]
[425833755,1781959847000,-500.0,0.00016438,2]
[425833757,1781959847000,-503.13760683,0.00016438,2]
[425833750,1781959847000,-500.0,0.00016438,2]
[425833752,1781959847000,-507.73890815,0.00016438,2]
[425833745,1781959847000,-505.47210868,0.00016438,2]
[425833725,1781959847000,-717.69,0.00016438,2]
[425833741,1781959847000,-500.0,0.00016438,2]
[425833718,1781959847000,-594.31,0.00016438,2]
[425833709,1781959847000,-500.0,0.00016438,2]
[425833729,1781959847000,-512.55483075,0.00016438,2]
[425833699,1781959847000,-500.0,0.00016438,2]
[425833695,1781959847000,-500.0,0.00016438,2]
[425833698,1781959847000,-500.0,0.00016438,2]
[425833696,1781959847000,-500.0,0.00016438,2]
[425833702,1781959847000,-500.0,0.00016438,2]
[425833703,1781959847000,-500.0,0.00016438,2]
[425833697,1781959847000,-500.0,0.00016438,2]
[425833700,1781959847000,-500.0,0.00016438,2]
[425833711,1781959847000,-500.0,0.00016438,2]
[425833716,1781959847000,-500.0,0.00016438,2]
[425833707,1781959847000,-500.0,0.00016438,2]
[425833704,1781959847000,-500.0,0.00016438,2]
[425833747,1781959847000,-500.0,0.00016438,2]
[425833705,1781959847000,-500.0,0.00016438,2]
[425833713,1781959847000,-500.0,0.00016438,2]
[425833715,1781959847000,-511.40640751,0.00016438,2]
[425833706,1781959847000,-500.0,0.00016438,2]
[425833712,1781959847000,-500.0,0.00016438,2]
[425833708,1781959847000,-510.67931553,0.00016438,2]
[425833714,1781959847000,-500.0,0.00016438,2]
[425833710,1781959847000,-500.0,0.00016438,2]
[425833717,1781959847000,-500.0,0.00016438,2]
[425833722,1781959847000,-499.91053542,0.00016438,2]
[425833724,1781959847000,-500.0,0.00016438,2]
[425833728,1781959847000,-500.0,0.00016438,2]
[425833723,1781959847000,-502.90811302,0.00016438,2]
[425833730,1781959847000,-502.94378242,0.00016438,2]
[425833721,1781959847000,-500.0,0.00016438,2]
[425833749,1781959847000,-500.0,0.00016438,2]
[425833701,1781959847000,-502.27122857,0.00016438,2]
[425833753,1781959847000,-501.82378282,0.00016438,2]
[425833790,1781959847000,-500.0,0.00016438,2]
[425833787,1781959847000,-500.0,0.00016438,2]
[425833789,1781959847000,-500.0,0.00016438,2]
[425833788,1781959847000,-500.0,0.00016438,2]
[425833793,1781959847000,-500.0,0.00016438,2]
[425833798,1781959847000,-525.35126449,0.00016438,2]
[425833794,1781959847000,-1141.11,0.00016438,2]
[425833802,1781959847000,-523.99238079,0.00016438,2]
[425833792,1781959847000,-507.89015728,0.00016438,2]
[425833800,1781959847000,-501.8623164,0.00016438,2]
[425833797,1781959847000,-500.0,0.00016438,2]
[425833801,1781959847000,-504.26123636,0.00016438,2]
[425833799,1781959847000,-509.11077999,0.00016438,2]
[425833795,1781959847000,-500.0,0.00016438,2]
[425833808,1781959847000,-686.97,0.00016438,2]
[425833804,1781959847000,-520.23014948,0.00016438,2]
[425833803,1781959847000,-641.61,0.00016438,2]
[425833812,1781959847000,-500.0,0.00016438,2]
[425833807,1781959847000,-500.0,0.00016438,2]
[425833813,1781959847000,-500.0,0.00016438,2]
[425833806,1781959847000,-200.76357992,0.00016438,2]
[425833805,1781959847000,-507.93908446,0.00016438,2]
[425833814,1781959847000,-500.0,0.00016438,2]
[425833810,1781959847000,-500.0,0.00016438,2]
[425833809,1781959847000,-500.0,0.00016438,2]
[425833811,1781959847000,-724.69,0.00016438,2]
[425833746,1781959847000,-526.57730658,0.00016438,2]
[425833785,1781959847000,-519.60543895,0.00016438,2]
[425833786,1781959847000,-505.33030807,0.00016438,2]
[425833796,1781959847000,-524.43777367,0.00016438,2]
[425833779,1781959847000,-500.0,0.00016438,2]
[425833751,1781959847000,-500.0,0.00016438,2]
[425833761,1781959847000,-503.53143992,0.00016438,2]
[425833791,1781959847000,-504.03326934,0.00016438,2]
[425833770,1781959847000,-500.0,0.00016438,2]
[425833763,1781959847000,-451.83582067,0.00016438,2]
[425833762,1781959847000,-500.0,0.00016438,2]
[425833769,1781959847000,-500.0,0.00016438,2]
[425833759,1781959847000,-500.0,0.00016438,2]
[425833760,1781959847000,-504.0409745,0.00016438,2]
[425833764,1781959847000,-506.09076781,0.00016438,2]
[425833765,1781959847000,-618.41400803,0.00016438,2]
[425833767,1781959847000,-475.55118748,0.00016438,2]
[425833766,1781959847000,-500.0,0.00016438,2]
[425833768,1781959847000,-500.0,0.00016438,2]
[425833758,1781959847000,-516.93810313,0.00016438,2]
[425833782,1781959847000,-503.03625774,0.00016438,2]
[425833778,1781959847000,-506.90890304,0.00016438,2]
[425833773,1781959847000,-500.0,0.00016438,2]
[425833776,1781959847000,-521.47148665,0.00016438,2]
[425833783,1781959847000,-530.1067757,0.00016438,2]
[425833774,1781959847000,-501.39710488,0.00016438,2]
[425833777,1781959847000,-500.0,0.00016438,2]
[425833781,1781959847000,-571.51248128,0.00016438,2]
[425833771,1781959847000,-501.70589214,0.00016438,2]
[425833780,1781959847000,-500.0,0.00016438,2]
[425833775,1781959847000,-500.0,0.00016438,2]
[425833784,1781959847000,-951.49,0.00016438,2]
[425833772,1781959847000,-507.80059282,0.00016438,2]
[425833829,1781959848000,-511.31328991,0.00016438,2]
[425833837,1781959848000,-739.35,0.00016438,2]
[425833835,1781959848000,-500.0,0.00016438,2]
[425833830,1781959848000,-504.27084772,0.00016438,2]
[425833836,1781959848000,-504.14679146,0.00016438,2]
[425833838,1781959848000,-510.04292816,0.00016438,2]
[425833832,1781959848000,-500.0,0.00016438,2]
[425833834,1781959848000,-500.0,0.00016438,2]
[425833831,1781959848000,-500.0,0.00016438,2]
[425833828,1781959848000,-508.50368843,0.00016438,2]
[425833823,1781959848000,-500.0,0.00016438,2]
[425833824,1781959848000,-1000.0,0.00016438,2]
[425833822,1781959848000,-500.0,0.00016438,2]
[425833821,1781959848000,-514.4649768,0.00016438,2]
[425833817,1781959848000,-509.19096106,0.00016438,2]
[425833826,1781959848000,-580.88,0.00016438,2]
[425833816,1781959848000,-714.81,0.00016438,2]
[425833820,1781959848000,-500.0,0.00016438,2]
[425833818,1781959848000,-526.39655911,0.00016438,2]
[425833827,1781959848000,-500.0,0.00016438,2]
[425833825,1781959848000,-500.0,0.00016438,2]
[425833815,1781959848000,-515.70951311,0.00016438,2]
[425833833,1781959848000,-506.26841727,0.00016438,2]
[425833819,1781959848000,-502.08773277,0.00016438,2]
[425833852,1781959848000,-745.89,0.00016605,2]
[425833839,1781959848000,-500.0,0.00016438,2]
[425833846,1781959848000,-1265.46,0.00016438,2]
[425833845,1781959848000,-500.0,0.00016438,2]
[425833866,1781959848000,-504.22069536,0.00016712,2]
[425833865,1781959848000,-500.0,0.00016712,2]
[425833867,1781959848000,-97.96102118,0.00016712,2]
[425833862,1781959848000,-500.0,0.00016712,2]
[425833860,1781959848000,-238.07,0.00016607,2]
[425833857,1781959848000,-445.0,0.00016606,2]
[425833854,1781959848000,-745.98,0.00016605,2]
[425833859,1781959848000,-186.0,0.00016606,2]
[425833856,1781959848000,-1841.0,0.00016606,2]
[425833863,1781959848000,-594.31,0.00016712,2]
[425833853,1781959848000,-745.89,0.00016605,2]
[425833861,1781959848000,-500.0,0.00016712,2]
[425833864,1781959848000,-717.69,0.00016712,2]
[425833855,1781959848000,-1418.0,0.00016606,2]
[425833843,1781959848000,-1004.25,0.00016438,2]
[425833840,1781959848000,-500.0,0.00016438,2]
[425833847,1781959848000,-500.0,0.00016438,2]
[425833849,1781959848000,-500.0,0.00016438,2]
[425833851,1781959848000,-745.89,0.00016605,2]
[425833844,1781959848000,-500.0,0.00016438,2]
[425833848,1781959848000,-7557.4,0.00016438,2]
[425833850,1781959848000,-745.89,0.00016605,2]
[425833842,1781959848000,-500.0,0.00016438,2]
[425833841,1781959848000,-501.30095042,0.00016438,2]
[425833858,1781959848000,-188.91,0.00016606,2]
[425833884,1781961032000,-1172.46212838,0.00012835,2]
[425833883,1781961032000,-156.188,0.00012835,2]
[425833882,1781961032000,-551.21027201,0.00012833,2]
[425833900,1781961038000,-85277.11988439,0.00012835,2]
[425833899,1781961038000,-254.22,0.00012835,2]
[425833898,1781961038000,-14110.92277195,0.00012835,2]
[425833985,1781961043000,-13864.33523906,0.00012835,2]
[425834161,1781961046000,-98.04898873,0.00013091,2]
[425834159,1781961046000,-17992.82091456,0.00012835,2]
[425834160,1781961046000,-300.0,0.00013091,2]
[425834315,1781962238000,-300.0,0.0001309,2]
[425834320,1781962238000,-300.0,0.0001309,2]
[425834316,1781962238000,-300.0,0.0001309,2]
[425834317,1781962238000,-300.0,0.0001309,2]
[425834322,1781962238000,-300.0,0.0001309,2]
[425834318,1781962238000,-300.0,0.0001309,2]
[425834321,1781962238000,-300.0,0.0001309,2]
[425834319,1781962238000,-300.0,0.0001309,2]
[425834314,1781962238000,-17380.1775177,0.00013027,2]
[425834326,1781962238000,-300.0,0.0001309,2]
[425834325,1781962238000,-300.0,0.0001309,2]
[425834323,1781962238000,-300.0,0.0001309,2]
[425834324,1781962238000,-300.0,0.0001309,2]
[425834357,1781962239000,-500.0,0.00014288,2]
[425834360,1781962239000,-500.0,0.00014288,2]
[425834358,1781962239000,-500.0,0.00014288,2]
[425834359,1781962239000,-500.0,0.00014288,2]
[425834368,1781962239000,-500.0,0.00014288,2]
[425834363,1781962239000,-500.0,0.00014288,2]
[425834381,1781962239000,-500.0,0.00014288,2]
[425834364,1781962239000,-500.0,0.00014288,2]
[425834375,1781962239000,-500.0,0.00014288,2]
[425834366,1781962239000,-500.0,0.00014288,2]
[425834373,1781962239000,-500.0,0.00014288,2]
[425834354,1781962239000,-500.0,0.00014288,2]
[425834374,1781962239000,-500.0,0.00014288,2]
[425834371,1781962239000,-500.0,0.00014288,2]
[425834365,1781962239000,-500.0,0.00014288,2]
[425834370,1781962239000,-500.0,0.00014288,2]
[425834369,1781962239000,-500.0,0.00014288,2]
[425834372,1781962239000,-500.0,0.00014288,2]
[425834377,1781962239000,-500.0,0.00014288,2]
[425834387,1781962239000,-500.0,0.00014288,2]
[425834388,1781962239000,-271.05548828,0.00014288,2]
[425834380,1781962239000,-500.0,0.00014288,2]
[425834378,1781962239000,-500.0,0.00014288,2]
[425834376,1781962239000,-500.0,0.00014288,2]
[425834379,1781962239000,-500.0,0.00014288,2]
[425834356,1781962239000,-500.0,0.00014288,2]
[425834367,1781962239000,-500.0,0.00014288,2]
[425834355,1781962239000,-500.0,0.00014288,2]
[425834334,1781962239000,-186.0,0.00013814,2]
[425834352,1781962239000,-500.0,0.00014288,2]
[425834331,1781962239000,-159.9019422,0.00013525,2]
[425834327,1781962239000,-300.0,0.0001309,2]
[425834332,1781962239000,-267.5799628,0.00013699,2]
[425834328,1781962239000,-300.0,0.0001309,2]
[425834333,1781962239000,-255.41676758,0.00013699,2]
[425834330,1781962239000,-600.0,0.0001309,2]
[425834329,1781962239000,-300.0,0.0001309,2]
[425834336,1781962239000,-249.95188659,0.00013904,2]
[425834335,1781962239000,-958.0,0.00013814,2]
[425834337,1781962239000,-500.0,0.00014061,2]
[425834341,1781962239000,-500.0,0.00014288,2]